Cogmind - Beta 14 *** ADVENTURER MODE // 2024.10.13 @ 01:04:36 Player: 7604 Result: Destroyed by Striker with Plasma Lance Performance ------------- Evolutions (9) 4500 Regions Visited (27) 5400 Robots Destroyed (142) 710 Value Destroyed (5871) 5871 Prototype IDs (61) 1220 Alien Tech Used (2) 400 Bonus (11605) 11605 TOTAL SCORE: 29706 Bonus ------- High Alert Combat Kills 80 Follower Combat Kills 507 Entered Garrisons 400 Used RIF Installer 1000 Met Data Miner 300 Met Imprinter 300 Met Warlord at Base 500 MAIN.C Attacked Warlord 500 Warlord Defense Kills 1196 Hacked Protovariant 500 Met Warlord at Research 2000 Scanned by Researcher 500 Acquired SGEMP 2000 Met Warlord at Command 2000 Friendly Fire -178 Cogmind --------- Core Integrity 0/1600 Matter 257/300 Energy 99/100 System Corruption 9% Temperature Cool (0) Movement Core (50) Location -1/Command Parts ------- > --- POWER (2) -------- (None) > --- PROPULSION (6) --- (None) > --- UTILITY (15) ----- Advanced Signal Interpreter Advanced Hacking Suite Advanced Hacking Suite Advanced Hacking Suite > --- WEAPON (2) ------- (None) > --- INVENTORY (5) ---- Gamma Rifle Quantum Rifle Kinetic Spear SGEMP Prototype Peak State ------------ > --- POWER ------------ Backup Power VII Micro Antimatter Reactor > --- PROPULSION ------- Advanced Surge Thruster Advanced Surge Thruster Electron Diverter Impulse Thruster Array Cooled Q-thruster > --- UTILITY ---------- Advanced Heat Sink Gravity Neutralizer Advanced Signal Interpreter Advanced Transmission Jammer Centrium Light Armor Plating Centrium Medium Armor Plating Centrium Medium Armor Plating Hacking Suite Advanced Hacking Suite Advanced Hacking Suite Advanced Hacking Suite Advanced Hacking Suite Ghost Barrier > --- WEAPON ----------- Sigix Broadsword > --- INVENTORY -------- Electron Diverter ECM Suite Terrabomb Gamma Bomb Array Improved Plasma Cutter [Rating: 181] Favorites ----------- Power Light Nuclear Core Engine Makeshift Power Source Power Core Light Nuclear Core Reactor Micro Antimatter Reactor Propulsion Impulse Thruster Treads Light Treads Leg Improved Carbon-fiber Leg Wheel Armored Wheel Flight Unit Impulse Thruster Utility Hacking Suite Device Advanced Heat Sink Storage Medium Storage Unit Processor Advanced Signal Interpreter Hackware Hacking Suite Protection Makeshift Light Armor Plating Weapon Particle Gun Energy Gun Particle Gun Energy Cannon Subdweller Beam Cannon Ballistic Gun Makeshift Shrapnel Gun Ballistic Cannon Bore Cannon Launcher Long-range Missile Launcher Special Weapon Improved Remote Datajack Impact Weapon Thunder Hammer Slashing Weapon Sigix Broadsword Piercing Weapon CR-A16's Pointy Stick Build | -11 -10 -10 -8 -7 -7 -7 -7 -6 -6 -6 -6 -6 -5 -5 -5 -5 -5 -4 -4 -4 -3 -3 -3 -2 -2 -1 -1 ------- Run | Yrd Mat Sub Mat Fac Low Low Zio Pro Fac Low Low Dat Pro Fac Upp Upp War Pro Fac Gar Res Gar Qua Res Tes Acc Com Slots Evolved 18 | . . . 4 2 . . . . 2 . . . . 2 . . . . 2 . 2 . . 2 . 2 . Power 1 | . . . . . . . . . . . . . . 1 . . . . . . . . . . . . . Propulsion 4 | . . . 2 1 . . . . . . . . . . . . . . 1 . . . . . . . . Utility 13 | . . . 2 1 . . . . 2 . . . . 1 . . . . 1 . 2 . . 2 . 2 . Weapon . | . . . . . . . . . . . . . . . . . . . . . . . . . . . . Parts Attached 397 | 7 11 12 27 6 14 15 14 17 11 6 10 . 3 38 14 30 36 8 18 12 16 3 8 27 9 8 17 Power 60 | 2 1 5 4 . 2 3 . 4 . . . . 1 6 3 2 5 . 2 1 6 . . 8 1 1 3 Engine 22 | 2 1 5 4 . . 1 . 1 . . . . 1 2 . . 1 . 1 . 3 . . . . . . Core 25 | . . . . . 2 2 . 3 . . . . . 4 3 2 3 . 1 . 1 . . 3 . . 1 Reactor 13 | . . . . . . . . . . . . . . . . . 1 . . 1 2 . . 5 1 1 2 Propulsion 101 | 2 2 4 7 . 3 4 1 6 4 2 5 . . 9 2 5 15 1 5 2 2 . 1 7 6 1 5 Treads 4 | . . 1 . . . 2 . . 1 . . . . . . . . . . . . . . . . . . Leg 16 | 2 2 . 4 . . 1 1 2 1 . . . . . . . 3 . . . . . . . . . . Wheel 6 | . . 2 . . . 1 . . . . . . . . . 2 1 . . . . . . . . . . Hover . | . . . . . . . . . . . . . . . . . . . . . . . . . . . . Flight 75 | . . 1 3 . 3 . . 4 2 2 5 . . 9 2 3 11 1 5 2 2 . 1 7 6 1 5 Utility 124 | 1 4 . 9 4 3 4 4 6 5 4 2 . 2 19 3 11 6 1 7 4 4 2 3 9 1 5 1 Device 72 | . 2 . 7 2 3 4 3 5 3 1 2 . 2 10 1 3 2 1 4 4 3 1 1 4 1 3 . Storage 4 | 1 . . . . . . . . . . . . . 1 . 1 . . . . . . . . . 1 . Processor 2 | . 1 . . . . . . . . . . . . 1 . . . . . . . . . . . . . Hackware 20 | . . . 2 2 . . . 1 . 1 . . . 4 . 1 . . 3 . . 1 1 2 . 1 1 Protection 26 | . 1 . . . . . 1 . 2 2 . . . 3 2 6 4 . . . 1 . 1 3 . . . Artifact . | . . . . . . . . . . . . . . . . . . . . . . . . . . . . Weapon 112 | 2 4 3 7 2 6 4 9 1 2 . 3 . . 4 6 12 10 6 4 5 4 1 4 3 1 1 8 Energy Gun 32 | . 4 1 2 2 3 . . . . . . . . . 3 . 7 2 1 2 1 1 . . . . 3 Energy Cannon 1 | . . 1 . . . . . . . . . . . . . . . . . . . . . . . . . Ballistic Gun 12 | 2 . . 1 . 3 2 2 . . . . . . . 1 . . . . . . . 1 . . . . Ballistic Cannon 8 | . . . . . . 1 4 . 1 . 2 . . . . . . . . . . . . . . . . Launcher 16 | . . . 4 . . . 2 . . . . . . . 1 1 1 3 1 1 2 . . . . . . Special Weapon 14 | . . 1 . . . . . . 1 . . . . 3 . 4 1 . . . 1 . 2 1 . . . Impact Weapon 13 | . . . . . . 1 1 . . . . . . 1 1 7 1 1 . . . . . . . . . Slashing Weapon 7 | . . . . . . . . . . . . . . . . . . . 2 2 . . 1 2 . . . Piercing Weapon 9 | . . . . . . . . 1 . . 1 . . . . . . . . . . . . . 1 1 5 Special Melee Weapon . | . . . . . . . . . . . . . . . . . . . . . . . . . . . . Unidentified Prototypes 23 | . . . . . . . 3 . . . . . . 1 . . 7 . 3 . . . 1 2 4 2 . Corrupted Parts 6 | . . . 2 . 1 1 . . . . . . . . 1 . . . . . 1 . . . . . . System Corruption 12 | . . . 6 . 2 1 . . . . . . . . 1 . . . . . 2 . . . . . . Parts Lost 110 | . . 3 14 3 6 4 . 5 2 1 3 . 6 10 4 9 2 5 1 3 1 . . 2 3 3 20 Power 23 | . . 2 4 . . 1 . 1 . . . . 1 3 1 2 1 . 1 . 1 . . . . 1 4 Propulsion 44 | . . . 4 2 4 1 . 1 2 . 1 . 2 3 2 6 1 2 . 1 . . . 1 2 . 9 Utility 32 | . . . 2 1 1 . . 3 . 1 2 . 2 4 1 1 . 3 . 1 . . . 1 . 2 7 Weapon 11 | . . 1 4 . 1 2 . . . . . . 1 . . . . . . 1 . . . . 1 . . Highest Loss Streak 13 | . . 2 13 3 2 3 . 5 1 2 3 . 6 5 3 3 2 5 1 1 1 . . 1 3 3 12 To Critical Strikes 1 | . . . . . . . . . . . . . . . . . . . . . . . . . . . 1 Average Slot Usage (%) 83 | . 98 98 63 64 65 63 83 95 88 96 95 100 77 87 95 65 76 83 80 83 86 89 90 85 84 78 62 Engine 4 | . 14 13 5 . . 4 . 5 6 6 6 6 5 3 . . 2 . 1 1 . . . . . . . Core 3 | . . . . . 5 1 7 1 . . . . . 4 11 3 5 11 8 5 1 4 4 6 4 2 . Treads 1 | . . . . . . 4 7 . 3 . . . . . . . . . . . . . . . . . . Leg 7 | . 28 12 9 29 5 1 8 25 4 . . . . . . . 3 . . . . . . . . . . Wheel 4 | . . 14 . . . 1 7 6 . . . . . . . 1 9 . . . . . . . . . . Flight 10 | . . . 11 . 10 . . 3 19 31 33 33 24 23 29 15 3 21 22 20 23 23 23 21 20 19 17 Device 10 | . 13 . 11 8 16 21 17 13 13 13 14 20 15 20 5 5 5 4 8 14 15 16 14 11 8 9 2 Storage 4 | . 14 14 6 . . . . . . . . . . 2 5 4 5 5 5 5 4 4 4 4 . 2 3 Processor 3 | . . 14 2 . . . . . . . . . . . 5 5 5 5 5 5 4 4 4 4 4 4 4 Hackware 13 | . . . 10 24 18 15 15 14 13 17 14 13 13 12 17 14 17 17 24 21 19 20 22 24 26 24 24 Protection 4 | . . . . . . . 4 7 16 13 13 13 8 6 9 5 5 9 . . 3 4 4 4 10 7 2 Energy Gun 5 | . 25 23 4 . . . . . . . . . . . 1 . 4 1 1 . 2 3 . . . . 1 Ballistic Gun 1 | . 1 . . . 7 10 3 . . . . . . . 1 . . . . . . . . . . . . Ballistic Cannon 1 | . . . . . . . 7 13 . . 1 6 2 . . . . . . . . . . . . . . Peak Build Rating 181 | 6 10 13 29 35 32 26 39 52 66 60 70 70 72 87 87 83 98 87 130 128 136 129 158 178 181 156 147 Average Rating 55 | 3 8 10 19 29 23 22 31 48 54 57 62 70 53 66 78 50 70 82 115 119 125 127 148 156 169 144 109 On Entrance 70 | . 6 9 9 26 20 24 26 38 46 55 59 70 70 44 86 77 59 87 74 128 108 126 129 148 178 140 134 Naked Turns . | . . . . . . . . . . . . . . . . . . . . . . . . . . . . Heaviest Build 58 | 13 16 21 19 5 15 14 30 30 25 22 32 32 35 37 36 42 58 34 37 39 46 43 46 50 41 42 45 Greatest Support 77 | 20 20 40 36 3 36 21 42 77 33 35 36 36 36 43 37 44 50 35 46 45 46 46 46 51 51 43 46 Greatest Overweight (x) 3 | . . 1 3 1 3 1 1 . . . . . . 1 1 2 2 . . . . . . 1 . . 1 Average Overweight (x) . | . . . . . . . . . . . . . . . . . . . . . . . . . . . . Largest Inventory Capacity 10 | 8 8 8 8 5 5 5 5 5 5 5 5 5 5 10 10 10 10 10 10 10 10 10 10 10 5 10 10 Average Capacity 7 | 7 8 8 7 5 5 5 5 5 5 5 5 5 5 7 10 9 10 10 10 10 10 10 10 9 5 8 9 Most Carried 10 | 2 8 8 8 5 5 5 5 5 5 5 5 5 5 10 10 10 10 10 10 10 10 10 10 10 5 6 10 Average Carried 6 | . 7 7 5 4 4 4 4 4 4 4 4 5 3 5 9 8 7 9 9 9 8 9 9 9 4 4 7 Final Capacity 10 | 8 8 8 5 5 5 5 5 5 5 5 5 5 5 10 10 10 10 10 10 10 10 10 10 5 5 10 5 Final Carried 10 | 2 8 8 3 5 4 4 5 5 5 5 5 5 4 8 9 5 10 9 9 9 9 10 9 5 5 5 5 Class Distribution -------------------- 39% | Hacker-Mutant 15% | Wizard-Sprinter 13% | Mutant 11% | Derelict-Mutant 10% | Hacker-Sprinter 6% | Scavenger-Mutant Dominant Class ---------------- Mutant | -10/Materials Mutant | -10/Subcaves Hacker-Mutant | -8/Materials Hacker-Mutant | -7/Factory Hacker-Mutant | -7/Lower Caves Hacker-Mutant | -7/Lower Caves Hacker-Mutant | -7/Zion Derelict-Mutant | -6/Proximity Caves Hacker-Mutant | -6/Factory Hacker-Sprinter | -6/Lower Caves Hacker-Sprinter | -6/Lower Caves Derelict-Mutant | -6/Data Miner Derelict-Mutant | -5/Proximity Caves Derelict-Mutant | -5/Factory Hacker-Sprinter | -5/Upper Caves Hacker-Mutant | -5/Upper Caves Hacker-Mutant | -5/Warlord Hacker-Sprinter | -4/Proximity Caves Wizard-Sprinter | -4/Factory Wizard-Sprinter | -4/Garrison Wizard-Sprinter | -3/Research Wizard-Sprinter | -3/Garrison Wizard-Sprinter | -3/Quarantine Wizard-Sprinter | -2/Research Wizard-Sprinter | -2/Testing Wizard-Sprinter | -1/Access Wizard-Sprinter | -1/Command Resources | -11 -10 -10 -8 -7 -7 -7 -7 -6 -6 -6 -6 -6 -5 -5 -5 -5 -5 -4 -4 -4 -3 -3 -3 -2 -2 -1 -1 ----------- Run | Yrd Mat Sub Mat Fac Low Low Zio Pro Fac Low Low Dat Pro Fac Upp Upp War Pro Fac Gar Res Gar Qua Res Tes Acc Com Matter Collected 4758 | 178 192 105 98 112 307 267 143 506 88 93 92 . 17 241 260 326 430 8 327 80 85 . 315 283 45 63 97 Remotely . | . . . . . . . . . . . . . . . . . . . . . . . . . . . . Salvage Created 5029 | . 578 253 87 29 220 169 . 191 76 78 100 . . 263 143 215 258 128 270 708 167 . 440 269 186 63 138 Parts 259 | . 27 15 11 . 13 7 . 11 5 3 6 . . 14 11 10 7 15 19 29 10 . 18 11 8 4 5 Haulers Intercepted . | . . . . . . . . . . . . . . . . . . . . . . . . . . . . Recyclers Shooed 1 | . 1 . . . . . . . . . . . . . . . . . . . . . . . . . . Parts Field Recycled . | . . . . . . . . . . . . . . . . . . . . . . . . . . . . Retrieved Matter . | . . . . . . . . . . . . . . . . . . . . . . . . . . . . Parts Self-Destructed 71 | . . . . . 5 10 . 21 . 1 5 . . . 5 13 . 11 . . . . . . . . . Prevented 6 | . . . . . 2 2 . . . 1 . . . . . 1 . . . . . . . . . . . Kills | -11 -10 -10 -8 -7 -7 -7 -7 -6 -6 -6 -6 -6 -5 -5 -5 -5 -5 -4 -4 -4 -3 -3 -3 -2 -2 -1 -1 ------- Run | Yrd Mat Sub Mat Fac Low Low Zio Pro Fac Low Low Dat Pro Fac Upp Upp War Pro Fac Gar Res Gar Qua Res Tes Acc Com Combat Hostiles Destroyed 123 | . 11 6 3 . 8 6 . 7 1 3 4 . . 4 8 9 8 13 10 9 4 . 5 2 1 1 . Melee 40 | . . . . . . . . . 1 3 4 . . 4 3 2 . . 5 9 . . 5 2 1 1 . Guns 34 | . 11 5 1 . 8 2 . . . . . . . . 1 . 4 1 1 . . . . . . . . Cannons 11 | . . 1 . . . 3 . 7 . . . . . . . . . . . . . . . . . . . AOE 31 | . . . 2 . . . . . . . . . . . 3 4 4 11 4 . 3 . . . . . . Classes Destroyed 16 | . 5 1 1 1 . . . 1 2 . . . . . . . 4 . . . . . 1 . . . . Worker 1 | . 1 . . . . . . . . . . . . . . . . . . . . . . . . . . Builder 2 | . . . . . . . . . 1 . . . . 1 . . . . . . . . . . . . . Recycler 4 | . 2 . . . . . . . . . . . . 1 . . . . . . . . . . . . 1 Operator 1 | . . . . 1 . . . . . . . . . . . . . . . . . . . . . . . Drone 1 | . . . . . . . . 1 . . . . . . . . . . . . . . . . . . . Watcher 9 | . 3 . . . . . . . . . . . . 1 . . . . 1 . . . . 2 1 . 1 Swarmer 71 | . 3 . 2 . 8 3 . 3 . 3 4 . . 4 8 8 . 13 9 . 3 . . . . . . Grunt 34 | . 8 . . . . 2 . 3 . . . . . . . 1 4 . 1 8 1 . 5 . 1 . . Brawler 1 | . . . . . . . . . . . . . . . . . 1 . . . . . . . . . . Researcher 2 | . . . . . . . . . . . . . . . . . . . . . . . 1 . 1 . . Sentry 5 | . . . 1 . . 1 . . . . . . . . . . . . . 1 . . . 2 . . . Hunter 1 | . . . . . . . . . . . . . . . . . 1 . . . . . . . . . . Programmer 2 | . . . . . . . . . 1 . . . . . . . . . . . . . . . . 1 . Striker 1 | . . . . . . . . . . . . . . . . . 1 . . . . . . . . . . Executioner 1 | . . . . . . . . . . . . . . . . . 1 . . . . . . . . . . Subdweller 6 | . . 6 . . . . . . . . . . . . . . . . . . . . . . . . . Best Kill Streak 7 | . 7 2 2 1 2 3 . 2 1 3 3 . . 4 5 4 4 5 5 4 3 . 3 2 1 1 1 Combat Bots Only 5 | . 5 2 2 . 2 3 . 2 1 3 3 . . 3 5 4 4 5 5 4 3 . 3 1 1 1 . Max Kills in Single Turn 4 | . 1 1 2 1 1 1 . 1 1 1 1 . . 1 3 4 3 4 4 1 3 . 1 1 1 1 1 Gunslinging . | . . . . . . . . . . . . . . . . . . . . . . . . . . . . Exploded 4 | . . . 2 . . . . . . . . . . . 3 4 3 4 4 . 3 . . . . . . Melee 1 | . . . . . . . . . 1 1 1 . . 1 1 1 . . 1 1 . . 1 1 1 1 . Uniques/NPCs Destroyed . | . . . . . . . . . . . . . . . . . . . . . . . . . . . . Combat | -11 -10 -10 -8 -7 -7 -7 -7 -6 -6 -6 -6 -6 -5 -5 -5 -5 -5 -4 -4 -4 -3 -3 -3 -2 -2 -1 -1 -------- Run | Yrd Mat Sub Mat Fac Low Low Zio Pro Fac Low Low Dat Pro Fac Upp Upp War Pro Fac Gar Res Gar Qua Res Tes Acc Com Hostile Shots Fired 1851 | . 50 51 242 38 78 102 . 53 69 20 49 . 55 102 63 74 68 41 37 61 48 26 44 58 110 70 242 Missed 775 | . 16 21 95 17 37 44 . 14 38 7 19 . 33 42 29 22 31 22 20 27 21 16 16 22 31 36 99 Damage Taken 15117 | . 269 573 1428 241 473 576 . 514 242 152 354 . 283 932 413 744 394 498 284 556 442 131 399 834 1221 615 2549 Core 4131 | . 58 160 501 31 110 209 . 17 39 46 133 . 123 240 74 130 104 94 42 183 100 13 33 52 10 93 1536 Absorbed by Shields 410 | . . . . 25 . . . . . . . . . . . . 122 . . . . . . . 49 . 214 Redirected to Shielding 148 | . . . . . . . . . 14 17 9 . 7 14 10 22 17 38 . . . . . . . . . Ignored by Resistances 4390 | . 85 147 421 77 141 177 . 146 75 46 105 . 79 265 121 214 143 134 85 160 125 38 116 228 355 168 739 Regen/Repaired (Parts) 1124 | . 69 . . 22 . . . . . . . . . . . . 44 . 59 . . . 140 383 407 . . Core Remaining (%) 58 | 100 . 12 8 . . . . 47 . . . . 59 . . . . 35 . 80 . . 88 . 95 . . Volleys Fired 306 | . 40 89 3 7 33 17 . 24 4 . 1 . . 4 5 7 22 11 5 6 16 6 5 1 . . . Largest 2 | . 2 2 2 1 2 2 . 2 1 . 1 . . 1 1 1 2 1 1 1 2 1 2 1 . . . Hottest 145 | . 115 145 125 55 55 49 . 114 57 . 57 . . 7 81 80 100 60 65 65 108 65 60 10 . . . Shots Fired 440 | . 77 134 5 7 40 25 . 48 4 . 1 . . 4 5 7 28 11 5 6 17 6 9 1 . . . Gun 312 | . 77 104 4 7 40 17 . . . . . . . . 3 . 23 5 4 5 13 6 4 . . . . Cannon 86 | . . 26 . . . 8 . 48 3 . 1 . . . . . . . . . . . . . . . . Launcher 21 | . . . 1 . . . . . . . . . . . 2 2 5 6 1 1 3 . . . . . . Special 21 | . . 4 . . . . . . 1 . . . . 4 . 5 . . . . 1 . 5 1 . . . Kinetic 114 | . . . . . 34 25 . 48 3 . 1 . . . . . . . . . . . 3 . . . . Thermal 226 | . 77 134 4 . . . . . . . . . . . 3 5 . . . . . . 3 . . . . Explosive 20 | . . . . . . . . . . . . . . . 2 2 5 6 1 1 3 . . . . . . Electromagnetic 43 | . . . 1 7 6 . . . . . . . . . . . . . 4 5 13 6 1 . . . . Entropic 28 | . . . . . . . . . . . . . . . . . 23 5 . . . . . . . . . Robot Hit Streak 28 | . 17 20 24 28 6 10 . 5 1 . . . . 2 1 6 8 2 7 10 18 6 7 8 . . . Robot Miss Streak 6 | . 5 1 . 2 3 1 . 6 3 . 1 . . 1 2 1 5 3 . . 1 1 . . . . . Penetration Max . | . . . . . . . . . . . . . . . . . . . . . . . . . . . . Secondary Targets . | . . . . . . . . . . . . . . . . . . . . . . . . . . . . Shots Hit Robots 387 | . 56 45 4 4 25 26 . 23 4 3 8 . 3 16 9 13 22 8 11 20 15 2 24 22 16 2 6 Core Hits 217 | . 25 13 4 1 14 11 . 10 2 3 4 . 2 6 6 7 32 14 8 11 18 1 11 5 6 1 2 Critical Kills 7 | . . . . . . . . 6 . . . . . . . 1 . . . . . . . . . . . Critical Parts Destroyed 17 | . . . 1 . 1 1 . 7 . . . . . 2 3 1 . . . . . . 1 . . . . Critical Strikes 49 | . 1 5 1 . 1 2 . 13 . . 1 . . 2 3 2 . . 1 4 . . 7 1 4 1 . Burn 6 | . 1 5 . . . . . . . . . . . . . . . . . . . . . . . . . Destroy 16 | . . . 1 . 1 . . 13 . . . . . . . . . . . . . . 1 . . . . Blast 1 | . . . . . . 1 . . . . . . . . . . . . . . . . . . . . . Smash 8 | . . . . . . 1 . . . . . . . 2 3 2 . . . . . . . . . . . Sever 16 | . . . . . . . . . . . . . . . . . . . 1 4 . . 6 1 4 . . Impale 2 | . . . . . . . . . . . 1 . . . . . . . . . . . . . . 1 . Melee Attacks 213 | . . . . . . 5 1 . 5 9 14 . 5 23 9 13 . 1 12 26 . . 25 24 22 5 14 Impact 33 | . . . . . . 5 1 . . . . . . 4 9 13 . 1 . . . . . . . . . Slashing 109 | . . . . . . . . . . . . . . . . . . . 12 26 . . 25 24 22 . . Piercing 71 | . . . . . . . . . 5 9 14 . 5 19 . . . . . . . . . . . 5 14 Sneak Attacks 6 | . . . . . . . . . 1 1 . . . 2 . . . . . . . . . . 1 . 1 Combat Hostiles 1 | . . . . . . . . . . 1 . . . . . . . . . . . . . . . . . Follow-up Attacks . | . . . . . . . . . . . . . . . . . . . . . . . . . . . . Damage Inflicted 17196 | . 781 658 86 57 355 675 . 471 149 127 282 . 116 621 709 752 2020 1264 1035 1355 834 54 1246 1656 1411 81 401 Guns 3455 | . 781 530 51 57 355 305 . . . . . . . . 24 . 824 167 68 34 179 54 26 . . . . Cannons 720 | . . 84 . . . 165 . 471 . . . . . . . . . . . . . . . . . . . Explosions 3877 | . . . 35 . . . . . . . . . . . 282 243 1196 1006 425 35 655 . . . . . . Melee 9021 | . . . . . . 205 . . 149 127 282 . 116 621 403 453 . 91 542 1286 . . 1197 1656 1411 81 401 Ramming . | . . . . . . . . . . . . . . . . . . . . . . . . . . . . Kinetic 1268 | . . . . . 301 470 . 471 . . . . . . . . . . . . . . 26 . . . . Thermal 1758 | . 781 658 51 . . . . . . . . . . . 24 56 . . 165 . . . 23 . . . . Explosive 3642 | . . . . . . . . . . . . . . . 282 243 1196 1006 260 . 655 . . . . . . Electromagnetic 516 | . . . 35 57 54 . . . . . . . . . . . . . 68 69 179 54 . . . . . Impact 1318 | . . . . . . 205 . . . . . . . 166 403 453 . 91 . . . . . . . . . Slashing 6092 | . . . . . . . . . . . . . . . . . . . 542 1286 . . 1197 1656 1411 . . Piercing 1611 | . . . . . . . . . 149 127 282 . 116 455 . . . . . . . . . . . 81 401 Entropic 991 | . . . . . . . . . . . . . . . . . 824 167 . . . . . . . . . Highest Corruption 9 | . . . 6 . 2 1 2 . . . . . . . 1 1 1 . . . 2 2 2 . 1 4 9 Average Corruption 1 | . . . 5 . 1 1 1 . . . . . . . 1 1 1 . . . 2 2 2 . 1 2 5 Corruption Purged 2 | . . . . . 2 . . . . . . . . . . . . . . . . . . . . . . Corruption Blocked . | . . . . . . . . . . . . . . . . . . . . . . . . . . . . Effects 46 | . . . 3 . 3 7 4 . . . . . . . 3 6 4 . . . 1 3 5 . 1 1 5 Message Errors 5 | . . . 1 . . 1 1 . . . . . . . . . . . . . . 1 . . 1 . . Matter Fused 17 | . . . 2 . 1 2 2 . . . . . . . 2 2 1 . . . . . 2 . . 1 2 Heat Flow Errors 5 | . . . . . 1 1 . . . . . . . . . . 1 . . . . . . . . . 2 Energy Discharges 7 | . . . . . 1 2 . . . . . . . . . . 1 . . . 1 1 1 . . . . Parts Rejected 1 | . . . . . . . . . . . . . . . . . . . . . . 1 . . . . . Data Loss (minor) 6 | . . . . . . 1 . . . . . . . . 1 4 . . . . . . . . . . . Data Loss (major) 2 | . . . . . . . . . . . . . . . . . . . . . . . 1 . . . 1 Misfires 1 | . . . . . . . . . . . . . . . . . . . . . . . 1 . . . . Alerts 2 | . . . . . . . 1 . . . . . . . . . 1 . . . . . . . . . . Overload Shots . | . . . . . . . . . . . . . . . . . . . . . . . . . . . . Overflow Damage 1325 | . . . . . . 55 . . 2 . 47 . . 205 292 138 16 127 193 14 17 . 22 93 . . 104 Projectiles 6 | . . . . . . 6 . . . . . . . . . . . . . . . . . . . . . Explosions 184 | . . . . . . . . . . . . . . . . 2 16 65 84 . 17 . . . . . . Melee 1135 | . . . . . . 49 . . 2 . 47 . . 205 292 136 . 62 109 14 . . 22 93 . . 104 Knockbacks 8 | . . . . . . 2 . 3 . . . . . . . 2 . 1 . . . . . . . . . Impact 3 | . . . . . . . . . . . . . . . . 2 . 1 . . . . . . . . . Kinetic 5 | . . . . . . 2 . 3 . . . . . . . . . . . . . . . . . . . Secondary . | . . . . . . . . . . . . . . . . . . . . . . . . . . . . Self-Inflicted Damage 104 | . . . . . . . . . . . . . . . . 35 . . 69 . . . . . . . . Shots 3 | . . . . . . . . . . . . . . . . 1 . . 2 . . . . . . . . Rammed . | . . . . . . . . . . . . . . . . . . . . . . . . . . . . Targets Rammed . | . . . . . . . . . . . . . . . . . . . . . . . . . . . . Kicked . | . . . . . . . . . . . . . . . . . . . . . . . . . . . . Crushed . | . . . . . . . . . . . . . . . . . . . . . . . . . . . . Highest Temperature 455 | . 192 96 72 20 154 183 . 455 . 209 201 70 12 9 173 105 201 110 120 22 66 24 . . 273 7 222 Average Temperature 75 | . 65 27 27 16 72 40 . 216 . 105 97 37 5 7 54 21 89 39 46 7 30 8 . . 86 7 47 Received Heat Transfer 3163 | . 114 126 648 141 . 294 . 198 120 . . . 51 225 . 108 120 . 21 230 130 21 112 162 147 99 96 Effects 4 | . . . . . . . . 4 . . . . . . . . . . . . . . . . . . . Shutdowns 2 | . . . . . . . . 2 . . . . . . . . . . . . . . . . . . . Energy Bleed 1 | . . . . . . . . 1 . . . . . . . . . . . . . . . . . . . Interference 1 | . . . . . . . . 1 . . . . . . . . . . . . . . . . . . . Siege Activations . | . . . . . . . . . . . . . . . . . . . . . . . . . . . . Robots Corrupted 8 | . . . . 1 . 1 . . . . . . . . 1 3 . 1 . . 1 . . . . . . Combat Hostiles 7 | . . . . . . 1 . . . . . . . . 1 3 . 1 . . 1 . . . . . . Parts Fried 10 | . . . . 2 . . . . . . . . . 1 2 4 . . . . 1 . . . . . . Impact Corruptions 21 | . . . . . . 2 . . . . . . . 2 8 6 . 3 . . . . . . . . . Robots Melted . | . . . . . . . . . . . . . . . . . . . . . . . . . . . . Combat Hostiles . | . . . . . . . . . . . . . . . . . . . . . . . . . . . . Parts Melted 10 | . 2 3 . . . . . . . . . . . . . . . . 5 . . . . . . . . Heat Transferred 5004 | . 2075 2219 99 . . . . . . . . . . . 37 400 . . 100 . . . 74 . . . . Parts Sabotaged . | . . . . . . . . . . . . . . . . . . . . . . . . . . . . Parts Stolen . | . . . . . . . . . . . . . . . . . . . . . . . . . . . . Parts Stripped . | . . . . . . . . . . . . . . . . . . . . . . . . . . . . Power Chain Reactions 2 | . . . 1 . . . . . . . . . . . . . . . . 1 . . . . . . . Alert | -11 -10 -10 -8 -7 -7 -7 -7 -6 -6 -6 -6 -6 -5 -5 -5 -5 -5 -4 -4 -4 -3 -3 -3 -2 -2 -1 -1 ------- Run | Yrd Mat Sub Mat Fac Low Low Zio Pro Fac Low Low Dat Pro Fac Upp Upp War Pro Fac Gar Res Gar Qua Res Tes Acc Com Peak Influence 625 | . 181 . 351 311 . . . . 115 . . . . 335 . . . . 554 625 353 374 329 224 196 201 168 Initial 301 | . . . . 132 . . . . . . . . . 7 . . . . 190 239 301 119 182 124 37 66 112 Average 153 | . 83 . 136 183 . . . . 38 . . . . 106 . . . . 285 381 235 171 244 169 104 122 99 Maximum Alert Level 2 | . . . 1 1 . . . . . . . . . 1 . . . . 2 2 1 1 1 1 . 1 . Low Security (%) 73 | 100 100 . 67 78 . . . . 100 . . . . 84 . . . . 35 . 44 73 19 68 100 97 100 Level 1 23 | . . . 32 21 . . . . . . . . . 15 . . . . 45 76 55 26 80 31 . 2 . Level 2 2 | . . . . . . . . . . . . . . . . . . . 18 23 . . . . . . . Level 3 . | . . . . . . . . . . . . . . . . . . . . . . . . . . . . Level 4 . | . . . . . . . . . . . . . . . . . . . . . . . . . . . . Level 5 . | . . . . . . . . . . . . . . . . . . . . . . . . . . . . High Security . | . . . . . . . . . . . . . . . . . . . . . . . . . . . . Max Security . | . . . . . . . . . . . . . . . . . . . . . . . . . . . . Squads Dispatched 33 | . 1 . 4 2 . . . . 4 . . . . 6 . 1 . 1 3 . 4 . 2 1 2 1 1 Investigation 20 | . 1 . 3 1 . . . . 2 . . . . 5 . . . 1 2 . 2 . . 1 1 . 1 Extermination 3 | . . . . . . . . . 1 . . . . 1 . . . . . . . . 1 . . . . Reinforcement 6 | . . . 1 1 . . . . 1 . . . . . . . . . . . 1 . 1 . . 1 . Assault 2 | . . . . . . . . . . . . . . . . 1 . . . . . . . . 1 . . Garrison 2 | . . . . . . . . . . . . . . . . . . . 1 . 1 . . . . . . Intercept . | . . . . . . . . . . . . . . . . . . . . . . . . . . . . Searches Triggered . | . . . . . . . . . . . . . . . . . . . . . . . . . . . . Data Miner Redirects 2 | . . . . . . . . . . . . . . 1 . . . . . . . . . . 1 . . Construction Impeded 1 | . . . . . . . . . . . . . . . . . . . . . 1 . . . . . . Haulers Reinforced . | . . . . . . . . . . . . . . . . . . . . . . . . . . . . Active Scanning Responses . | . . . . . . . . . . . . . . . . . . . . . . . . . . . . Cargo Convoy Interrupts . | . . . . . . . . . . . . . . . . . . . . . . . . . . . . Stealth | -11 -10 -10 -8 -7 -7 -7 -7 -6 -6 -6 -6 -6 -5 -5 -5 -5 -5 -4 -4 -4 -3 -3 -3 -2 -2 -1 -1 --------- Run | Yrd Mat Sub Mat Fac Low Low Zio Pro Fac Low Low Dat Pro Fac Upp Upp War Pro Fac Gar Res Gar Qua Res Tes Acc Com Distress Signals 23 | . 1 . 1 2 . . . . . . . . . 2 . . . 4 . . 1 . . 6 2 2 2 Communications Jammed 115 | . . . . . . . . . . . . . . 42 . . . . . . 26 18 . 12 13 4 . Distress Signals 113 | . . . . . . . . . . . . . . 40 . . . . . . 26 18 . 12 13 4 . Times Spotted 488 | . 14 7 34 14 31 13 . 12 13 4 4 . 15 42 15 29 33 20 22 10 22 15 12 15 20 20 52 Peak Tracking Total 21 | . 4 2 19 4 4 4 . 4 6 2 4 . 9 12 5 11 21 8 7 3 8 11 5 9 8 10 15 Tactical Retreats 71 | . . . 7 5 8 3 . 1 1 1 . . 4 10 7 3 3 2 2 . 3 1 . . 2 2 6 Traps | -11 -10 -10 -8 -7 -7 -7 -7 -6 -6 -6 -6 -6 -5 -5 -5 -5 -5 -4 -4 -4 -3 -3 -3 -2 -2 -1 -1 ------- Run | Yrd Mat Sub Mat Fac Low Low Zio Pro Fac Low Low Dat Pro Fac Upp Upp War Pro Fac Gar Res Gar Qua Res Tes Acc Com Traps Triggered 14 | . . 1 2 2 . . . . . . . . . . . . . . . 4 . . . . 1 . 4 Indirectly . | . . . . . . . . . . . . . . . . . . . . . . . . . . . . Trap Hack Attempts . | . . . . . . . . . . . . . . . . . . . . . . . . . . . . Triggered . | . . . . . . . . . . . . . . . . . . . . . . . . . . . . Disarmed . | . . . . . . . . . . . . . . . . . . . . . . . . . . . . Reprogrammed . | . . . . . . . . . . . . . . . . . . . . . . . . . . . . Reused . | . . . . . . . . . . . . . . . . . . . . . . . . . . . . Traps Extracted . | . . . . . . . . . . . . . . . . . . . . . . . . . . . . Installed . | . . . . . . . . . . . . . . . . . . . . . . . . . . . . Triggered 25 | . . . . . . . . 1 . 2 . . . . 2 2 17 . . . 1 . . . . . . Machines | -11 -10 -10 -8 -7 -7 -7 -7 -6 -6 -6 -6 -6 -5 -5 -5 -5 -5 -4 -4 -4 -3 -3 -3 -2 -2 -1 -1 ---------- Run | Yrd Mat Sub Mat Fac Low Low Zio Pro Fac Low Low Dat Pro Fac Upp Upp War Pro Fac Gar Res Gar Qua Res Tes Acc Com Machines Disabled 17 | . . . . . . . . . . 1 . . 1 . . . . . 6 2 . 1 4 . 2 . . Max in Single Turn 6 | . . . . . . . . . . 1 . . 1 . . . . . 6 2 . 1 1 . 1 . . Garrison Relay 1 | . . . . . . . . . . . . . . . . . . . . . . 1 . . . . . Phase Generator 1 | . . . . . . . . . . . . . . . . . . . . 1 . . . . . . . Machines Repaired . | . . . . . . . . . . . . . . . . . . . . . . . . . . . . Machines Dismantled 2 | . . . . . . . . . . . . . . . . . . . . . . . 2 . . . . Machines Sabotaged . | . . . . . . . . . . . . . . . . . . . . . . . . . . . . Overloaded Fab Kills . | . . . . . . . . . . . . . . . . . . . . . . . . . . . . Hacking | -11 -10 -10 -8 -7 -7 -7 -7 -6 -6 -6 -6 -6 -5 -5 -5 -5 -5 -4 -4 -4 -3 -3 -3 -2 -2 -1 -1 --------- Run | Yrd Mat Sub Mat Fac Low Low Zio Pro Fac Low Low Dat Pro Fac Upp Upp War Pro Fac Gar Res Gar Qua Res Tes Acc Com Machines Accessed 115 | . 10 2 2 9 . 1 1 . 9 1 1 4 2 14 . 1 13 1 10 1 7 . 6 6 8 . 6 Terminals 54 | . 7 . 1 5 . . . . 7 . . . 1 8 . . . 1 3 1 4 . 3 2 5 . 6 Fabricators 10 | . . . . 1 . . . . 1 . . . . 3 . . . . 2 . 1 . . 1 1 . . Repair Stations 7 | . 1 . . 1 . . . . . . . . . 1 . . . . 1 . 1 . . 1 1 . . Recycling Units 9 | . 2 . 1 2 . . . . 1 . . . . 1 . . . . 1 . . . . 1 . . . Scanalyzers 6 | . . . . . . . . . . . . . . 1 . . . . 1 . . . 3 . 1 . . Garrison Access 4 | . . . . . . . . . . . . . . . . . . . 2 . 1 . . 1 . . . Total Hacks 376 | . 29 3 8 28 . 1 5 . 27 1 1 33 2 55 . 1 28 4 40 3 34 . 15 21 22 . 15 Successful 264 | . 15 3 3 13 . 1 5 . 14 1 1 33 2 29 . 1 28 4 29 1 24 . 11 16 19 . 11 Failed 112 | . 14 . 5 15 . . . . 13 . . . . 26 . . . . 11 2 10 . 4 5 3 . 4 Catastrophic 19 | . 4 . 2 4 . . . . 2 . . . . 6 . . . . . . . . . 1 . . . Database Lockouts . | . . . . . . . . . . . . . . . . . . . . . . . . . . . . Manual 160 | . 19 . 6 15 . . . . 14 . . . 1 31 . . 1 . 18 1 20 . 3 8 11 . 12 Terminals 200 | . 22 . 4 18 . . . . 20 . . . 1 39 . . . 4 11 3 26 . 10 10 17 . 15 Fabricators 30 | . . . . 4 . . . . 2 . . . . 8 . . . . 6 . 3 . . 5 2 . . Repair Stations 19 | . 3 . . 2 . . . . . . . . . 3 . . . . 6 . 2 . . 2 1 . . Recycling Units 25 | . 4 . 4 4 . . . . 5 . . . . 4 . . . . 2 . . . . 2 . . . Scanalyzers 17 | . . . . . . . . . . . . . . 1 . . . . 9 . . . 5 . 2 . . Garrison Access 11 | . . . . . . . . . . . . . . . . . . . 6 . 3 . . 2 . . . Terminal Hacks 170 | . 10 3 1 5 . 1 5 . 9 1 1 33 2 15 . 1 28 4 2 1 15 . 6 6 12 . 9 Record 46 | . . 1 . . . . . . 2 1 . 11 2 1 . . 18 4 . . 2 . 3 . . . 1 Part Schematic 29 | . 3 . . . . . 5 . 2 . . 13 . 2 . . . . . . 3 . . . 1 . . Robot Schematic 6 | . . . . . . . . . . . . 6 . . . . . . . . . . . . . . . Robot Analysis 3 | . 2 . . . . . . . . . . . . . . . . . . . . . . . . . 1 Prototype ID Bank 17 | . 2 . . 1 . . . . . . . 3 . . . . 9 . . . 1 . . 1 . . . Open Door 5 | . . 1 . . . 1 . . . . 1 . . . . 1 1 . . . . . . . . . . Open DSF 4 | . . . . . . . . . 1 . . . . 1 . . . . 1 . 1 . . . . . . Level Access Points 2 | . . . . . . . . . . . . . . . . . . . . . . . . . 1 . 1 Branch Access Points 5 | . . . 1 1 . . . . 1 . . . . . . . . . . . 1 . . 1 . . . Emergency Access Points 4 | . . . . . . . . . . . . . . . . . . . . 1 1 . . . 1 . 1 Terminal Index 8 | . 1 . . 1 . . . . . . . . . 1 . . . . . . 1 . 1 1 1 . 1 Fabricator Index 7 | . . . . 1 . . . . 1 . . . . 1 . . . . . . 1 . 1 . 1 . 1 Repair Station Index 1 | . . . . . . . . . . . . . . . . . . . . . 1 . . . . . . Alert Level 2 | . 1 . . . . . . . . . . . . 1 . . . . . . . . . . . . . Unreport Threat 6 | . . . . . . . . . . . . . . 1 . . . . . . 2 . 1 . 1 . 1 Locate Traps 2 | . . . . . . . . . . . . . . 2 . . . . . . . . . . . . . Surveillance Status 1 | . . . . . . . . . . . . . . 1 . . . . . . . . . . . . . Recall Investigation 7 | . . . . . . . . . 1 . . . . 3 . . . . 1 . . . . 1 1 . . Recall Assault 1 | . . . . . . . . . . . . . . . . . . . . . . . . . 1 . . Hauler Manifests 2 | . 1 . . . . . . . 1 . . . . . . . . . . . . . . . . . . Registered Prototypes 2 | . . . . . . . . . . . . . . . . . . . . . 1 . . 1 . . . Zone Layout 5 | . . . . 1 . . . . . . . . . 1 . . . . . . . . . 1 1 . 1 Protovariant Controls 3 | . . . . . . . . . . . . . . . . . . . . . . . . . 3 . . Disengage Seal 1 | . . . . . . . . . . . . . . . . . . . . . . . . . . . 1 Release Object 1 | . . 1 . . . . . . . . . . . . . . . . . . . . . . . . . Fabricator Hacks 22 | . . . . 2 . . . . 2 . . . . 7 . . . . 3 . 2 . . 4 2 . . Network Status 4 | . . . . 1 . . . . . . . . . 1 . . . . 1 . . . . 1 . . . Load Schematic 9 | . . . . . . . . . 1 . . . . 3 . . . . 1 . 1 . . 2 1 . . Build 9 | . . . . 1 . . . . 1 . . . . 3 . . . . 1 . 1 . . 1 1 . . Repair Station Hacks 11 | . 2 . . 2 . . . . . . . . . 1 . . . . 3 . 1 . . 1 1 . . Scan Component 5 | . 1 . . 1 . . . . . . . . . 1 . . . . 2 . . . . . . . . Repair 3 | . 1 . . 1 . . . . . . . . . . . . . . 1 . . . . . . . . Refit 3 | . . . . . . . . . . . . . . . . . . . . . 1 . . 1 1 . . Recycling Unit Hacks 8 | . 1 . 1 2 . . . . 2 . . . . . . . . . 1 . . . . 1 . . . Retrieve Components 8 | . 1 . 1 2 . . . . 2 . . . . . . . . . 1 . . . . 1 . . . Scanalyzer 16 | . . . . . . . . . . . . . . 1 . . . . 9 . . . 4 . 2 . . Insert Component 11 | . . . . . . . . . . . . . . 1 . . . . 5 . . . 4 . 1 . . Analyze 5 | . . . . . . . . . . . . . . . . . . . 4 . . . . . 1 . . Garrison Access Hacks 3 | . . . . . . . . . . . . . . . . . . . 2 . 1 . . . . . . Unlock Access 3 | . . . . . . . . . . . . . . . . . . . 2 . 1 . . . . . . Unauthorized Hacks 34 | . 2 . 1 2 . . . . 1 . . . . 5 . . . . 9 . 5 . 1 4 2 . 2 Terminals 15 | . . . . . . . . . . . . . . 4 . . . . 2 . 4 . 1 . 2 . 2 Assimilate 9 | . . . . . . . . . . . . . . 1 . . . . 1 . 2 . 1 . 2 . 2 Botnet 4 | . . . . . . . . . . . . . . 2 . . . . 1 . 1 . . . . . . Disrupt 1 | . . . . . . . . . . . . . . . . . . . . . 1 . . . . . . Operators 1 | . . . . . . . . . . . . . . 1 . . . . . . . . . . . . . Fabricators 4 | . . . . . . . . . . . . . . . . . . . 3 . . . . 1 . . . Report 1 | . . . . . . . . . . . . . . . . . . . 1 . . . . . . . . Fabnet 2 | . . . . . . . . . . . . . . . . . . . 1 . . . . 1 . . . Download 1 | . . . . . . . . . . . . . . . . . . . 1 . . . . . . . . Repair Stations . | . . . . . . . . . . . . . . . . . . . . . . . . . . . . Recycling Units 9 | . 2 . 1 2 . . . . 1 . . . . 1 . . . . 1 . . . . 1 . . . Reject 9 | . 2 . 1 2 . . . . 1 . . . . 1 . . . . 1 . . . . 1 . . . Scanalyzers . | . . . . . . . . . . . . . . . . . . . . . . . . . . . . Garrison Access 6 | . . . . . . . . . . . . . . . . . . . 3 . 1 . . 2 . . . Broadcast 1 | . . . . . . . . . . . . . . . . . . . 1 . . . . . . . . Decoy 1 | . . . . . . . . . . . . . . . . . . . 1 . . . . . . . . Redirect 1 | . . . . . . . . . . . . . . . . . . . . . . . . 1 . . . Reprogram 2 | . . . . . . . . . . . . . . . . . . . . . 1 . . 1 . . . Intercept 1 | . . . . . . . . . . . . . . . . . . . 1 . . . . . . . . Data Cores Recovered 1 | . . . 1 . . . . . . . . . . . . . . . . . . . . . . . . Used . | . . . . . . . . . . . . . . . . . . . . . . . . . . . . Hacking Detections 68 | . 9 . 2 6 . . . . 7 . . . . 13 . . . 1 5 1 5 . 4 5 6 . 4 Full Trace Events 17 | . 2 . 1 1 . . . . 2 . . . . 5 . . . 1 1 . 1 . . 1 1 . 1 Feedback Events 1 | . . . . . . . . . . . . . . . . . . . . . . . . . . . 1 Hackware Fried 1 | . . . . . . . . . . . . . . . . . . . . . . . . . . . 1 Feedback Blocked . | . . . . . . . . . . . . . . . . . . . . . . . . . . . . Robot Schematics Acquired 12 | . . . . . . . 4 . . . . 6 . . . . . . . . . . 1 . 1 . . Robots Built 2 | . . . . 2 . . . . . . . . . . . . . . . . . . . . . . . Authchips . | . . . . . . . . . . . . . . . . . . . . . . . . . . . . Time 40 | . . . . 40 . . . . . . . . . . . . . . . . . . . . . . . Total Robot Build Rating 2 | . . . . 2 . . . . . . . . . . . . . . . . . . . . . . . Part Schematics Acquired 52 | . 2 . . . . . 20 . 2 . . 13 . 2 . . . . 4 . 3 . 3 . 3 . . Parts Built 11 | . . . . . . . . . 2 . . . . 6 . . . . . . . . . 2 1 . . Authchips . | . . . . . . . . . . . . . . . . . . . . . . . . . . . . Time 605 | . . . . . . . . . 58 . . . . 155 . . . . 106 . 58 . . 117 111 . . Total Part Build Rating 79 | . . . . . . . . . 14 . . . . 42 . . . . . . . . . 14 9 . . Parts Repaired 3 | . 1 . . 1 . . . . . . . . . . . . . . 1 . . . . . . . . Time 98 | . 32 . . 19 . . . . . . . . . . . . . . 47 . . . . . . . . Parts Recycled . | . . . . . . . . . . . . . . . . . . . . . . . . . . . . Recycled Matter . | . . . . . . . . . . . . . . . . . . . . . . . . . . . . Retrieved Matter . | . . . . . . . . . . . . . . . . . . . . . . . . . . . . Retrieved Components 14 | . 3 . 2 5 . . . . . . . . . . . . . . 1 . . . . 3 . . . Parts Scanalyzed 4 | . . . . . . . . . . . . . . . . . . . 3 . . . . . 1 . . Part Schematics Acquired 4 | . . . . . . . . . . . . . . . . . . . 3 . . . . . 1 . . Parts Damaged 1 | . . . . . . . . . . . . . . . . . . . 1 . . . . . . . . Bothacking | -11 -10 -10 -8 -7 -7 -7 -7 -6 -6 -6 -6 -6 -5 -5 -5 -5 -5 -4 -4 -4 -3 -3 -3 -2 -2 -1 -1 ------------ Run | Yrd Mat Sub Mat Fac Low Low Zio Pro Fac Low Low Dat Pro Fac Upp Upp War Pro Fac Gar Res Gar Qua Res Tes Acc Com Used RIF Installer 2 | . . . . . . . . . . . . . . . . . . . . 1 . 1 . . . . . Hotswap 1 | . . . . . . . . . . . . . . . . . . . . . . 1 . . . . . Robots Hacked 11 | . . . . . . . . . 1 . . . . 2 . . . . . . 1 . 1 1 . 2 3 Non-combat 5 | . . . . . . . . . 1 . . . . 2 . . . . . . 1 . . 1 . . . Combat 6 | . . . . . . . . . . . . . . . . . . . . . . . 1 . . 2 3 Robot Hacks Applied 8 | . . . . . . . . . 1 . . . . 3 . . . . . . 1 . 2 1 . . . parse_system 3 | . . . . . . . . . . . . . . . . . . . . . 1 . 1 1 . . . no_distress 3 | . . . . . . . . . 1 . . . . 2 . . . . . . . . . . . . . find_recycling 1 | . . . . . . . . . . . . . . 1 . . . . . . . . . . . . . find_scanalyzer 1 | . . . . . . . . . . . . . . . . . . . . . . . 1 . . . . Relay Couplers Released 5 | . . . . . . . . . . . . . . . . . . . . . . 5 . . . . . Machine Destruction 5 | . . . . . . . . . . . . . . . . . . . . . . 5 . . . . . Attached 1 | . . . . . . . . . . . . . . . . . . . . . . 1 . . . . . Fabnet Peak Effective % 3 | . . . . . . . . . . . . . . . . . . . . . . . . . . 3 3 Autooverrided 5 | . . . . . . . . . . . . . . . . . . . . . . . . . . 2 3 Robots Rewired 9 | . . . . . . . . . . . . . . . 1 1 5 . 2 . . . . . . . . Allies Hacked . | . . . . . . . . . . . . . . . . . . . . . . . . . . . . Hacks Repelled . | . . . . . . . . . . . . . . . . . . . . . . . . . . . . Allies | -11 -10 -10 -8 -7 -7 -7 -7 -6 -6 -6 -6 -6 -5 -5 -5 -5 -5 -4 -4 -4 -3 -3 -3 -2 -2 -1 -1 -------- Run | Yrd Mat Sub Mat Fac Low Low Zio Pro Fac Low Low Dat Pro Fac Upp Upp War Pro Fac Gar Res Gar Qua Res Tes Acc Com Total Allies 28 | . . . . 2 . . 3 . . . . . . 1 1 1 5 . 3 . 4 . 1 . 2 2 3 Largest Group 6 | . . . . 2 . . 3 3 . . . . . 1 1 1 6 . 2 . 2 . 1 . 1 1 1 Highest-Rated Group 340 | . . . . 16 . . 67 67 . . . . . 10 29 49 340 . 94 . 112 . 26 . 45 69 64 Highest-Rated Ally 69 | . . . . 8 . . 28 28 . . . . . 10 29 49 68 . 47 . 56 . 26 . 45 69 64 Total Orders 10 | . . . . . . . . . . . 3 . 5 . 1 . . . 1 . . . . . . . . ROAM 2 | . . . . . . . . . . . . . 1 . . . . . 1 . . . . . . . . EXPLORE 5 | . . . . . . . . . . . 2 . 2 . 1 . . . . . . . . . . . . RETURN 3 | . . . . . . . . . . . 1 . 2 . . . . . . . . . . . . . . Ally Attacks 82 | . . . . . . . . 27 . . . . . . 3 . 24 . 12 . 9 . . . . 2 5 Total Damage 2207 | . . . . . . . . 382 . . . . . . . . 992 . 324 . 293 . . . . 68 148 Kills 16 | . . . . . . . . 6 . . . . . . . . 8 . 1 . . . . . . . 1 Allies Corrupted . | . . . . . . . . . . . . . . . . . . . . . . . . . . . . Allies Melted 1 | . . . . . . . . . . . . . . . . . 1 . . . . . . . . . . Intel | -11 -10 -10 -8 -7 -7 -7 -7 -6 -6 -6 -6 -6 -5 -5 -5 -5 -5 -4 -4 -4 -3 -3 -3 -2 -2 -1 -1 ------- Run | Yrd Mat Sub Mat Fac Low Low Zio Pro Fac Low Low Dat Pro Fac Upp Upp War Pro Fac Gar Res Gar Qua Res Tes Acc Com Robot Analysis Total 3 | . 2 . . . . . . . . . . . . . . . . . . . . . . . . . 1 Derelict Logs Recovered 15 | . . 1 . . 2 2 1 2 . 1 1 . 1 . 2 1 . 1 . . . . . . . . . Drone Launches 8 | . . . . . . . . . . . 2 . 5 . 1 . . . . . . . . . . . . Drone Recoveries 6 | . . . . . . . . . . . 2 . 3 . 1 . . . . . . . . . . . . Exploration | -11 -10 -10 -8 -7 -7 -7 -7 -6 -6 -6 -6 -6 -5 -5 -5 -5 -5 -4 -4 -4 -3 -3 -3 -2 -2 -1 -1 ------------- Run | Yrd Mat Sub Mat Fac Low Low Zio Pro Fac Low Low Dat Pro Fac Upp Upp War Pro Fac Gar Res Gar Qua Res Tes Acc Com Turns Passed 15028 | 58 818 2114 252 489 629 751 1265 937 410 241 333 27 541 774 323 902 1444 155 412 313 201 92 292 452 327 169 307 Spaces Moved 19973 | 39 514 1582 349 809 1025 765 1281 778 483 688 753 78 799 1262 762 1130 1204 359 844 261 448 275 473 1084 608 561 759 Core 1487 | 4 . . 98 809 316 255 . . . . . . . . . . . . . . . . . . . . 5 Treads 309 | . . . . . . 164 . . 145 . . . . . . . . . . . . . . . . . . Legs 1631 | 35 514 261 2 . 24 7 161 625 . . . . . . . . 2 . . . . . . . . . . Wheels 3448 | . . 1297 . . . 130 1120 . . . . . . . . 107 794 . . . . . . . . . . Hover . | . . . . . . . . . . . . . . . . . . . . . . . . . . . . Flight 13098 | . . 24 249 . 685 209 . 153 338 688 753 78 799 1262 762 1023 408 359 844 261 448 275 473 1084 608 561 754 Fastest Speed 13 | 50 120 55 37 50 29 35 90 50 29 25 25 34 34 33 30 28 24 28 26 26 27 27 27 18 13 23 22 Average Speed 54 | 112 120 111 55 50 46 77 94 106 75 25 28 34 40 38 30 38 80 29 28 28 27 27 27 24 19 23 27 Slowest Speed 275 | 120 120 190 200 100 275 160 120 120 160 32 34 34 44 130 112 192 250 32 32 29 27 27 27 88 24 23 108 Overloaded Moves 146 | . . . . . . . . . . . . . . . . . . . . . . . . . 146 . . Propulsion Burnouts 1 | . . . . . . . . . . . . . . . . . . . . . . . . . 1 . . Robots Hopped 85 | . . . 12 . 1 . . . 4 . . . . 9 2 1 2 1 1 1 4 4 1 6 19 13 4 Cave-ins Triggered 1 | . . . . . . . . . . . . . . . . . . . . . . . . . . . 1 Exploration Rate (%) 53 | 3 85 57 42 20 85 69 87 82 12 87 91 68 71 41 76 91 94 66 23 40 13 36 31 30 60 24 27 Regions Visited 27 Branch Regions 16 Pre-discovered Areas 3 | . . . . . . . . . . 1 . 1 . . 1 . . . . . . . . . . . . Known Exits Taken 15 | . 1 1 . 1 . . . . 1 . . . . 1 1 1 1 1 1 . 1 . 1 1 1 1 . Unknown Exits Taken 10 | 1 . . 1 . 1 1 1 1 . 1 1 1 1 . . . . . . . . . . . . . . Scrap Searched 40 | . . 10 . . 2 2 2 4 . 5 3 . 3 . 4 3 . 2 . . . . . . . . . Spaces Dug 27 | . . 2 . . . . . . . 1 . . 1 7 1 2 . . . . . . 3 1 3 . 6 Terrain Destroyed 314 | . . 2 3 . . 1 . 25 1 1 1 . 1 7 25 22 28 62 23 77 22 . 3 1 3 . 6 Melee 25 | . . . . . . . . . . 1 . . 1 7 1 2 . . . . . . 3 1 3 . 6 Projectile 42 | . . 2 . . . 1 . 25 1 . 1 . . . . . 9 3 . . . . . . . . . AOE 247 | . . . 3 . . . . . . . . . . . 24 20 19 59 23 77 22 . . . . . . Terrain Rammed . | . . . . . . . . . . . . . . . . . . . . . . . . . . . . Walls Destroyed . | . . . . . . . . . . . . . . . . . . . . . . . . . . . . Machines Disabled . | . . . . . . . . . . . . . . . . . . . . . . . . . . . . Actions | -11 -10 -10 -8 -7 -7 -7 -7 -6 -6 -6 -6 -6 -5 -5 -5 -5 -5 -4 -4 -4 -3 -3 -3 -2 -2 -1 -1 --------- Run | Yrd Mat Sub Mat Fac Low Low Zio Pro Fac Low Low Dat Pro Fac Upp Upp War Pro Fac Gar Res Gar Qua Res Tes Acc Com Total 23261 | 49 638 1797 386 886 1146 894 1337 843 509 736 843 77 1004 1497 832 1575 1662 389 983 438 510 281 568 1219 754 577 831 Wait 1877 | 3 58 89 4 44 68 85 26 4 5 28 59 . 194 138 25 340 317 8 80 55 19 . 20 59 113 11 25 Move 19788 | 38 513 1581 326 808 1022 764 1280 777 475 687 752 77 798 1244 757 1127 1199 356 842 258 439 266 470 1074 573 535 750 Hop 73 | . . . 10 . 1 . . . 3 . . . . 8 2 1 2 1 1 1 4 4 1 3 15 12 4 Pick Up 115 | 1 7 6 7 5 3 1 4 6 . 2 2 . 1 14 5 13 13 1 6 . 2 . 10 3 2 . 1 Fast Attach 195 | 6 5 6 11 2 6 8 10 6 8 4 5 . 1 21 5 8 16 . 12 4 4 2 3 19 7 6 10 Attach 134 | . . 4 12 4 7 3 2 7 1 . 1 . 2 13 6 18 17 2 5 5 9 . 1 4 1 3 7 Detach 133 | . 2 4 6 3 4 2 1 6 1 . . . 1 14 3 15 20 1 4 6 9 1 3 10 3 4 10 Swap 69 | 1 6 2 4 . 1 4 2 4 2 2 4 . . 4 3 4 3 6 1 3 3 1 4 4 1 . . Drop 194 | . 7 15 3 2 1 5 11 9 5 4 5 . 2 14 6 20 20 1 11 2 5 . 13 18 12 1 2 Fire 306 | . 40 89 3 7 33 17 . 24 4 . 1 . . 4 5 7 22 11 5 6 16 6 5 1 . . . Melee 213 | . . . . . . 5 1 . 5 9 14 . 5 23 9 13 . 1 12 26 . . 25 24 22 5 14 Ram . | . . . . . . . . . . . . . . . . . . . . . . . . . . . . Kick . | . . . . . . . . . . . . . . . . . . . . . . . . . . . . Crush . | . . . . . . . . . . . . . . . . . . . . . . . . . . . . Escape Stasis 96 | . . . . 11 . . . . . . . . . . . . . . . 72 . . . . 5 . 8 Rewire 54 | . . . . . . . . . . . . . . . 6 9 33 1 4 . . 1 . . . . . Trap . | . . . . . . . . . . . . . . . . . . . . . . . . . . . . Miscellaneous 14 | . . 1 . . . . . . . . . . . . . . . . . . . . 13 . . . . Route ------- -11/Scrapyard -10/Materials (discovered 3 exits: [*Mat] / [*Min] / *Sub) -10/Subcaves -8/Materials -7/Factory (discovered 2 exits: *Low x2) -7/Lower Caves -7/Lower Caves (discovered 2 exits: *Fac / *Zio) -7/Zion -6/Proximity Caves -6/Factory (discovered 2 exits: *Low x2) -6/Lower Caves -6/Lower Caves (discovered 2 exits: *Fac / *Dat) -6/Data Miner -5/Proximity Caves -5/Factory (discovered 4 exits: *Fac x2 / *Upp x2) -5/Upper Caves -5/Upper Caves (discovered 2 exits: *Fac / *War) -5/Warlord -4/Proximity Caves -4/Factory (discovered 5 exits: [*Upp] / Ext x2 / Gar / Gar) -4/Garrison -3/Research (discovered 4 exits: Arm / Qua x2 / Gar) -3/Garrison -3/Quarantine -2/Research (discovered 3 exits: Acc / *Tes x2) -2/Testing -1/Access -1/Command (discovered 2 exits: Sur x2) History --------- Turn | Location | Event 41 | -11/Scrapyard | Discovered new exit (range 12) 59 | -11/Scrapyard | Entered Materials 316 | -10/Materials | Build established: Mutant 423 | -10/Materials | Discovered new exit (range 13) 675 | -10/Materials | Discovered new exit (range 15) 784 | -10/Materials | Repaired Particle Gun 850 | -10/Materials | Discovered new exit (range 10) 876 | -10/Materials | Identified exit to Subcaves 877 | -10/Materials | Entered Subcaves 1146 | -10/Subcaves | A swath of the cavern ceiling suddenly collapsed 1528 | -10/Subcaves | Released subatomizers from SUBCON Basin 1988 | -10/Subcaves | Core integrity fell below 50% 2164 | -10/Subcaves | A swath of the cavern ceiling suddenly collapsed 2356 | -10/Subcaves | Build established: Scavenger-Mutant 2719 | -10/Subcaves | Discovered new exit (range 6) 2744 | -10/Subcaves | Identified exit to Materials 2932 | -10/Subcaves | Core integrity fell below 20% 2991 | -10/Subcaves | Entered Materials 2991 | -8/Materials | Evolved 4 slots: Propulsion x2, Utility x2 3159 | -8/Materials | Core integrity fell below 50% 3213 | -8/Materials | Lost 13 parts (4p4n2u3w) 3230 | -8/Materials | Discovered new exit (range 16) 3232 | -8/Materials | Core integrity fell below 20% 3243 | -8/Materials | Entered Factory 3243 | -7/Factory | Evolved 2 slots: Propulsion x1, Utility x1 3284 | -7/Factory | Build established: Hacker-Mutant 3316 | -7/Factory | Repaired Adv. Weight Redist. System 3413 | -7/Factory | Identified exit to Lower Caves 3604 | -7/Factory | Fabricated R-06 Scavenger? 3732 | -7/Factory | Entered Lower Caves 3761 | -7/Lower Caves | Lost 3 parts (2n1u) 4272 | -7/Lower Caves | Learned Factory stockpile data 4277 | -7/Lower Caves | Discovered new exit (range 11) 4361 | -7/Lower Caves | Entered another Lower Caves area 4368 | -7/Lower Caves | Discovered new exit (range 9) 4444 | -7/Lower Caves | Attracted the attention of an 0b10 checkpoint 4745 | -7/Lower Caves | Learned Factory emergency access door positions 4826 | -7/Lower Caves | Encountered a Warlord checkpoint 4837 | -7/Lower Caves | Learned Factory emergency access door positions 4922 | -7/Lower Caves | Lost 3 parts (1p2w) 4985 | -7/Lower Caves | Discovered new exit (range 13) 5112 | -7/Lower Caves | Entered Zion 5183 | -7/Zion | Discovered new exit (range 10) 5227 | -7/Zion | System corruption cleaned by Quarantine Array 5370 | -7/Zion | Found GAL Module 5588 | -7/Zion | Gained Derelict followers 5751 | -7/Zion | Found Prototype Device 5751 | -7/Zion | Identified Mobile Refinery Mk. CCLXVII 5796 | -7/Zion | Met Imprinter 5857 | -7/Zion | Found Prototype Launcher 5857 | -7/Zion | Identified Rocket Array 5863 | -7/Zion | Found Prototype Launcher 5863 | -7/Zion | Identified Gui. Missile Launcher 5977 | -7/Zion | System corruption cleaned by Quarantine Array 6335 | -7/Zion | Found CR-A16's Pointy Stick 6377 | -7/Zion | Entered Proximity Caves 6377 | -6/Proximity Caves | Accompanied by 3 allies 6379 | -6/Proximity Caves | Attracted the attention of an 0b10 checkpoint 6379 | -6/Proximity Caves | Core integrity fell below 50% 6533 | -6/Proximity Caves | Lost 5 parts (1p1n3u) 6797 | -6/Proximity Caves | Build established: Derelict-Mutant 6988 | -6/Proximity Caves | Learned Factory terminal intel 7312 | -6/Proximity Caves | Discovered new exit (range 6) 7314 | -6/Proximity Caves | Entered Factory 7314 | -6/Factory | Evolved 2 slots: Utility x2 7317 | -6/Factory | Loaded intel: 26 terminal locations 7372 | -6/Factory | Identified exit to Lower Caves 7447 | -6/Factory | Identified exit to DSF 7478 | -6/Factory | Fabricated Impulse Thruster? 7545 | -6/Factory | Build established: Hacker-Mutant 7724 | -6/Factory | Entered Lower Caves 7763 | -6/Lower Caves | Attacked by a delusional Derelict stockpiling parts 7778 | -6/Lower Caves | Encountered a Warlord checkpoint 7866 | -6/Lower Caves | Discovered new exit (range 11) 7965 | -6/Lower Caves | Entered another Lower Caves area 7968 | -6/Lower Caves | Discovered new exit (range 13) 7979 | -6/Lower Caves | Build established: Hacker-Sprinter 8071 | -6/Lower Caves | Lost 3 parts (1n2u) 8113 | -6/Lower Caves | Discovered new exit (range 30) 8132 | -6/Lower Caves | Learned 4 Factory zone layouts 8298 | -6/Lower Caves | Entered Data Miner 8298 | -6/Data Miner | Discovered new exit (range 6) 8305 | -6/Data Miner | Met Data Miner 8311 | -6/Data Miner | Learned location of Section 7 (-3) 8311 | -6/Data Miner | Acquired the access code to Warlord's prototype stash 8317 | -6/Data Miner | Received God Mode back door access code from Data Miner 8325 | -6/Data Miner | Entered Proximity Caves 8412 | -5/Proximity Caves | Spotted B-75 Beast 8495 | -5/Proximity Caves | Build established: Derelict-Mutant 8550 | -5/Proximity Caves | Lost 6 parts (1p2n2u1w) 8654 | -5/Proximity Caves | Found Alien Artifact 8863 | -5/Proximity Caves | Discovered new exit (range 8) 8866 | -5/Proximity Caves | Entered Factory 8866 | -5/Factory | Evolved 2 slots: Power x1, Utility x1 8867 | -5/Factory | Identified exit to Upper Caves 8928 | -5/Factory | Discovered new exit (range 9) 9110 | -5/Factory | Fabricated Impulse Thruster? 9168 | -5/Factory | Identified Dimensional Node Initializer 9263 | -5/Factory | Lost 5 parts (2p3u) 9334 | -5/Factory | Fabricated Impulse Thruster? 9396 | -5/Factory | Incoming investigation squad redirected 9552 | -5/Factory | Discovered new exit (range 13) 9585 | -5/Factory | Fabricated Impulse Thruster? 9640 | -5/Factory | Entered Upper Caves 9656 | -5/Upper Caves | Lost 3 parts (2n1u) 9666 | -5/Upper Caves | Build established: Hacker-Mutant 9689 | -5/Upper Caves | Learned location of Warlord (-5) 9717 | -5/Upper Caves | Lost 3 parts (1p1n1u) 9842 | -5/Upper Caves | Spotted B-75 Beast 9845 | -5/Upper Caves | Encountered a Warlord checkpoint 9847 | -5/Upper Caves | Learned 4 Factory zone layouts 9875 | -5/Upper Caves | Discovered new exit (range 5) 9876 | -5/Upper Caves | Identified exit to Upper Caves 9963 | -5/Upper Caves | Entered another Upper Caves area 9987 | -5/Upper Caves | Discovered new exit (range 3) 9987 | -5/Upper Caves | Identified exit to Factory 9997 | -5/Upper Caves | Build established: Hacker-Sprinter 10041 | -5/Upper Caves | Attracted the attention of an 0b10 outpost 10286 | -5/Upper Caves | Lost 3 parts (1p1n1u) 10674 | -5/Upper Caves | Learned Factory trap positions 10700 | -5/Upper Caves | Found DCF Scrap (12 items) 10812 | -5/Upper Caves | Attracted the attention of an 0b10 checkpoint 10853 | -5/Upper Caves | Discovered new exit (range 7) 10858 | -5/Upper Caves | Identified exit to Warlord 10865 | -5/Upper Caves | Entered Warlord 10865 | -5/Warlord | Accompanied by 1 ally 10926 | -5/Warlord | Discovered new exit (range 8) 10932 | -5/Warlord | Identified exit to Proximity Caves 10993 | -5/Warlord | Build established: Hacker-Mutant 11097 | -5/Warlord | System corruption cleaned by Quarantine Array 11368 | -5/Warlord | Learned Quarantine trap positions 11369 | -5/Warlord | Learned 4 Command zone layouts 11370 | -5/Warlord | Learned Research security intel 11370 | -5/Warlord | Learned Testing security intel 11370 | -5/Warlord | Learned Factory scanalyzer intel 11370 | -5/Warlord | Learned Research garrison access intel 11533 | -5/Warlord | Warlord's base attacked by MAIN.C 11585 | -5/Warlord | Found Prototype Energy Gun 11585 | -5/Warlord | Identified Vortex Shotgun 11592 | -5/Warlord | Found Prototype Energy Gun 11592 | -5/Warlord | Identified Vortex Rifle 11594 | -5/Warlord | Found Vortex Rifle 11661 | -5/Warlord | Met Warlord 11686 | -5/Warlord | Opened Warlord's prototype stash 11692 | -5/Warlord | Found Prototype Reactor 11692 | -5/Warlord | Identified Vortex Chain Reactor 11708 | -5/Warlord | Found Prototype Device 11713 | -5/Warlord | Found Prototype Hackware 11716 | -5/Warlord | Found Prototype Processor 11718 | -5/Warlord | Found Prototype Device 11883 | -5/Warlord | Warlord forces counterattacked 11911 | -5/Warlord | Identified Exp. Cloaking Device 11912 | -5/Warlord | Identified Exp. Focal Shield 12072 | -5/Warlord | Spotted Executioner 12077 | -5/Warlord | Destroyed Executioner 12171 | -5/Warlord | Core integrity fell below 50% 12176 | -5/Warlord | Lost 15 allies 12208 | -5/Warlord | Warlord base infiltrated, sounded retreat 12238 | -5/Warlord | Found Vortex Shotgun 12271 | -5/Warlord | Spotted Striker 12285 | -5/Warlord | Destroyed Striker 12291 | -5/Warlord | Spotted Executioner 12309 | -5/Warlord | Entered Proximity Caves 12334 | -4/Proximity Caves | Spotted B-86 Titan 12343 | -4/Proximity Caves | Learned 6 Upper Caves zone layouts 12343 | -4/Proximity Caves | Learned Extension trap positions 12401 | -4/Proximity Caves | Build established: Hacker-Sprinter 12464 | -4/Proximity Caves | Entered Factory 12464 | -4/Factory | Evolved 2 slots: Propulsion x1, Utility x1 12465 | -4/Factory | Identified exit to Extension 12465 | -4/Factory | Identified exit to DSF 12467 | -4/Factory | Loaded intel: 111 trap records 12468 | -4/Factory | Loaded intel: 4 scanalyzer locations 12472 | -4/Factory | Found Prototype Device 12472 | -4/Factory | Identified Exp. ECM Suite 12485 | -4/Factory | Lost 5 parts (2n3u) 12487 | -4/Factory | Identified Ghost Barrier 12541 | -4/Factory | Repaired Broken Impulse Thruster Array 12616 | -4/Factory | Identified Exp. Core Analyzer 12624 | -4/Factory | Garrison activated, responded to threat 12625 | -4/Factory | Identified exit to Garrison 12627 | -4/Factory | Discovered new exit (range 16) 12851 | -4/Factory | Build established: Wizard-Sprinter 12876 | -4/Factory | Identified exit to Garrison 12876 | -4/Factory | Entered Garrison 12900 | -4/Garrison | Triggered checkpoint 13067 | -4/Garrison | Installed Relay Interface Framework 13127 | -4/Garrison | Discovered new exit (range 9) 13139 | -4/Garrison | Phase Generator disabled 13153 | -4/Garrison | Identified exit to Research 13189 | -4/Garrison | Entered Research 13189 | -3/Research | Evolved 2 slots: Utility x2 13191 | -3/Research | Loaded intel: 4 garrison access locations 13236 | -3/Research | Identified exit to DSF 13307 | -3/Research | Identified exit to Armory 13307 | -3/Research | Identified exit to Quarantine 13311 | -3/Research | Spotted B-86 Titan 13320 | -3/Research | Identified exit to Garrison 13375 | -3/Research | Garrison activated, responded to threat 13390 | -3/Research | Entered Garrison 13404 | -3/Garrison | Expanded RIF knowledge: Hotswap 13432 | -3/Garrison | Spotted B-86 Titan 13448 | -3/Garrison | Triggered checkpoint 13450 | -3/Garrison | Garrison Relay disabled 13458 | -3/Garrison | Triggered checkpoint 13466 | -3/Garrison | Triggered checkpoint 13467 | -3/Garrison | Triggered checkpoint 13478 | -3/Garrison | Discovered exit to Quarantine (range 14) 13482 | -3/Garrison | Entered Quarantine 13483 | -3/Quarantine | Loaded intel: 18 trap records 13516 | -3/Quarantine | Scanned by Researcher 13541 | -3/Quarantine | Found Alien Artifact 13553 | -3/Quarantine | Identified Phase Redirector 13573 | -3/Quarantine | Found Alien Slashing Weapon 13573 | -3/Quarantine | Identified Sigix Broadsword 13634 | -3/Quarantine | Found Alien Artifact 13641 | -3/Quarantine | Found Alien Artifact 13646 | -3/Quarantine | Found Alien Artifact 13661 | -3/Quarantine | Identified Terrabomb (x3) 13681 | -3/Quarantine | Discovered new exit (range 16) 13685 | -3/Quarantine | Identified exit to Research 13709 | -3/Quarantine | Found Gamma Bomb Array 13741 | -3/Quarantine | Found Alien Artifact 13746 | -3/Quarantine | Found Alien Artifact 13751 | -3/Quarantine | Identified Transdimensional Reconstructor 13751 | -3/Quarantine | Identified Hpw. Transdimensional Reconstructor 13774 | -3/Quarantine | Entered Research 13774 | -2/Research | Warlord forces began assault on 0b10 13774 | -2/Research | Evolved 2 slots: Utility x2 13775 | -2/Research | Identified exit to Access 13775 | -2/Research | Identified exit to Testing 13884 | -2/Research | Research machine network offline 13925 | -2/Research | Fabricated Adv. Surge Thruster? 14148 | -2/Research | Borebot progress halted 14197 | -2/Research | Spotted Striker 14207 | -2/Research | Lost 3 allies 14207 | -2/Research | Met up with Warlord 14226 | -2/Research | Entered Testing 14369 | -2/Testing | Spotted Striker 14370 | -2/Testing | Protovariant out of control (PY-IHOPI8AZO4) 14370 | -2/Testing | Unleashed a protovariant (PY-IHOPI8AZO4) 14370 | -2/Testing | Spotted Striker 14372 | -2/Testing | Spotted Alpha 7 14375 | -2/Testing | Stole the SGEMP Prototype 14396 | -2/Testing | Incoming assault squad redirected 14520 | -2/Testing | Fabricated Exp. Q-thruster? 14553 | -2/Testing | Entered Access 14553 | -1/Access | Evolved 2 slots: Utility x2 14579 | -1/Access | Lost 3 parts (2n1w) 14693 | -1/Access | Found Prototype Hackware 14693 | -1/Access | Identified Exp. Hacking Suite 14718 | -1/Access | Used Terrabomb 14718 | -1/Access | Spotted B-99 Colossus 14718 | -1/Access | Spotted B-99 Colossus 14721 | -1/Access | Discovered new exit (range 6) 14722 | -1/Access | Identified exit to Command 14722 | -1/Access | Entered Command 14731 | -1/Command | Disengaged cave seal 14738 | -1/Command | Lost 3 parts (1p2u) 14739 | -1/Command | Identified exit to Surface 14742 | -1/Command | Welcomed Warlord to Command 14751 | -1/Command | Spotted B-99 Colossus 14805 | -1/Command | Spotted B-99 Colossus 14870 | -1/Command | Lost 4 allies 14934 | -1/Command | Lost 5 parts (1p1n3u) 14935 | -1/Command | Crushed by falling debris 14948 | -1/Command | Exp. Hacking Suite fried by hacking feedback 14980 | -1/Command | Warlord destroyed during the assault 15014 | -1/Command | Spotted Executioner 15014 | -1/Command | Spotted Executioner 15014 | -1/Command | Spotted Executioner 15014 | -1/Command | Spotted Executioner 15014 | -1/Command | Spotted Striker 15014 | -1/Command | Spotted Striker 15014 | -1/Command | Spotted Alpha 7 15014 | -1/Command | Spotted Alpha 7 15019 | -1/Command | Spotted B-99 Colossus 15019 | -1/Command | Spotted B-99 Colossus 15023 | -1/Command | Core integrity fell below 50% 15028 | -1/Command | Core integrity fell below 20% 15029 | -1/Command | Destroyed by Striker with Plasma Lance Last Messages --------------- 15025_ Slug penetrates Door. 15025_ Field strength at 74. 15025_ Penetrated by Slug. 15026_ B-99 Colossus activates siege mode. 15026_ Penetrated by Slug. 15026_ Field strength at 32. 15027_ System corrupted: Substantial component data lost. 15027_ Slug penetrates Wall. 15027_ Field strength at 1. 15028_ B-99 Colossus activates siege mode. 15028_ Stasis field depleted. 15028_ Penetrated by Slug. 15028_ Slug penetrates Wall. 15028_ Penetrated by Slug. 15028_ Slug penetrates Wall. 15028_ Penetrated by Slug. 15028_ Slug penetrates Executioner. 15029_ Penetrated by Slug. [Achievement: Tester] Map ----- +----------------------------------------------------+ | #######+######## "" #???????????????????????? | | + #???????????????????????? | | # #???????????????????????? | | + "" [#???????????????????????? | | # """" #???????????????????????? | | # """" #???????????????????????? | | #######+##### # "" #########+##????????????? | | # # # + #????????????? | | + + # ####### #????????????? | | # # # #?????# #????????????? | | # # # #?????# #????????????? | | + [ + # #?????# #????????????? | | # % #############?????# #????????????? | | # #?????????????????# #????????????? | | #############?????????????????# #????????????? | | #?????????????????????????????# #????????????? | | #####??????????????????????????# #????????????? | | #????????####??????????????# #????????????? | | #??????? ?????????????# = #????????????? | | ""#??????? BB###########?# =%*#????????????? | | ""#???????? BB; ;!#!#7#;#?# #????#???????? | | ""#??????????" ^!*% ### ### ###?????? | | T#??????????" !!%=E^!;!! ?? | | ""#??????????" ^ =^^[ ^ +[* ?? | | " #???????